lending/lending_fUSD_20240411
["ID","MTS","AMOUNT","RATE_DAILY","PERIOD"]
[322198656,1712869958858,-500.0,0.00029041,2]
[322198657,1712869958867,-4808.47,0.00029041,2]
[322198658,1712869958896,-2664.5,0.00029041,2]
[322198659,1712869958906,-1373.93,0.00029041,2]
[322198660,1712869958917,-505.74,0.00029041,2]
[322198661,1712869958926,-738.07,0.00029041,2]
[322198662,1712869958936,-3190.86,0.00029041,2]
[322198663,1712869958945,-1109.77,0.00029041,2]
[322198664,1712869958955,-1400.98,0.00029041,2]
[322198665,1712869958964,-2221.72,0.00029041,2]
[322198666,1712869958973,-500.0,0.00029041,2]
[322198667,1712869958982,-500.0,0.00029041,2]
[322198668,1712869958992,-2263.75,0.00029041,2]
[322198669,1712869959001,-17424.44,0.00029041,2]
[322198670,1712869959011,-1128.64,0.00029041,2]
[322198671,1712869959021,-1502.24,0.00029041,2]
[322198672,1712869959030,-612.74,0.00029041,2]
[322198673,1712869959039,-500.0,0.00029041,2]
[322198674,1712869959050,-17072.27,0.00029041,2]
[322198675,1712869959059,-3052.22,0.00029041,2]
[322198676,1712869959069,-500.0,0.00029041,2]
[322198677,1712869959078,-3640.47,0.00029041,2]
[322198678,1712869959088,-500.0,0.00029041,2]
[322198679,1712869959098,-1957.97,0.00029041,2]
[322198680,1712869959107,-955.9,0.00029041,2]
[322198681,1712869959117,-500.0,0.00029041,2]
[322198682,1712869959126,-500.0,0.00029041,2]
[322198683,1712869959136,-500.0,0.00029041,2]
[322198684,1712869959146,-3659.25,0.00029041,2]
[322198685,1712869959155,-5766.3,0.00029041,2]
[322198686,1712869959165,-3575.16,0.00029041,2]
[322198687,1712869959175,-711.78,0.00029041,2]
[322198688,1712869959185,-597.73,0.00029041,2]
[322198689,1712869959194,-7639.5,0.00029041,2]
[322198690,1712869959205,-500.0,0.00029041,2]
[322198691,1712869959215,-1392.31,0.00029041,2]
[322198692,1712869959225,-7389.58,0.00029041,2]
[322198693,1712869959235,-3014.69,0.00029041,2]
[322198694,1712869959244,-2191.02,0.00029041,2]
[322198695,1712869959253,-1051.14,0.00029041,2]
[322198696,1712869959263,-5336.03,0.00029041,2]
[322198697,1712869959272,-4291.51,0.00029041,2]
[322198698,1712869959282,-500.0,0.00029041,2]
[322198699,1712869959292,-604.03,0.00029041,2]
[322198700,1712869959302,-500.0,0.00029041,2]
[322198701,1712869959311,-52708.74,0.00029041,2]
[322198702,1712869959321,-500.0,0.00029041,2]
[322198703,1712869959330,-3260.75,0.00029041,2]
[322198704,1712869959340,-5115.15,0.00029041,2]
[322198705,1712869959350,-882.87,0.00029041,2]
[322198706,1712869959361,-500.0,0.00029041,2]
[322198707,1712869959371,-5854.93,0.00029041,2]
[322198708,1712869959383,-8061.26,0.00029041,2]
[322198709,1712869959393,-916.85,0.00029041,2]
[322198710,1712869959410,-745.2,0.00029041,2]
[322198711,1712869959420,-7112.46,0.00029041,2]
[322198712,1712869959430,-500.0,0.00029041,2]
[322198713,1712869959440,-6099.37,0.00029041,2]
[322198714,1712869959450,-1872.85,0.00029041,2]
[322198715,1712869959460,-1834.17,0.00029041,2]
[322198716,1712869959470,-5187.78,0.00029041,2]
[322198717,1712869959480,-500.0,0.00029041,2]
[322198718,1712869959490,-1268.14,0.00029041,2]
[322198719,1712869959500,-1960.92,0.00029041,2]
[322198720,1712869959510,-500.0,0.00029041,2]
[322198721,1712869959520,-3993.87,0.00029041,2]
[322198722,1712869959530,-1940.4,0.00029041,2]
[322198723,1712869959539,-1144.44,0.00029041,2]
[322198724,1712869959549,-30065.72,0.00029041,2]
[322198725,1712869959558,-500.0,0.00029041,2]
[322198726,1712869959568,-1318.07,0.00029041,2]
[322198727,1712869959578,-3922.38,0.00029041,2]
[322198728,1712869959588,-1507.79,0.00029041,2]
[322198729,1712869959599,-7272.96,0.00029041,2]
[322198730,1712869959609,-2185.46,0.00029041,2]
[322198731,1712869959619,-500.0,0.00029041,2]
[322198732,1712869959629,-1894.92,0.00029041,2]
[322198733,1712869959638,-500.0,0.00029041,2]
[322198734,1712869959648,-500.0,0.00029041,2]
[322198735,1712869959658,-739.67,0.00029041,2]
[322198736,1712869959668,-2576.43,0.00029041,2]
[322198737,1712869959678,-500.0,0.00029041,2]
[322198738,1712869959687,-752.22,0.00029041,2]
[322198739,1712869959697,-500.0,0.00029041,2]
[322198740,1712869959706,-2674.56,0.00029041,2]
[322198741,1712869959720,-918.8,0.00029041,2]
[322198742,1712869959733,-548.63,0.00029041,2]
[322198743,1712869959742,-636.15,0.00029041,2]
[322198744,1712869959753,-729.18,0.00029041,2]
[322198745,1712869959763,-763.21,0.00029041,2]
[322198746,1712869959773,-3486.04,0.00029041,2]
[322198747,1712869959783,-8034.42,0.00029041,2]
[322198748,1712869959793,-3850.53,0.00029041,2]
[322198749,1712869959803,-544.38,0.00029041,2]
[322198750,1712869959813,-1687.56,0.00029041,2]
[322198751,1712869959823,-500.0,0.00029041,2]
[322198752,1712869959834,-4101.12,0.00029041,2]
[322198753,1712869959843,-565.51,0.00029041,2]
[322198754,1712869959853,-2084.11,0.00029041,2]
[322198755,1712869959863,-544.26,0.00029041,2]
[322198756,1712869959873,-1782.79,0.00029041,2]
[322198757,1712869959884,-3404.95,0.00029041,2]
[322198758,1712869959895,-510.02,0.00029041,2]
[322198759,1712869959905,-500.0,0.00029041,2]
[322198760,1712869959915,-500.0,0.00029041,2]
[322198761,1712869959924,-2028.74,0.00029041,2]
[322198762,1712869959935,-500.0,0.00029041,2]
[322198763,1712869959945,-500.0,0.00029041,2]
[322198764,1712869959955,-3939.9,0.00029041,2]
[322198765,1712869959965,-733.75,0.00029041,2]
[322198766,1712869959975,-5901.28,0.00029041,2]
[322198767,1712869959985,-2166.88,0.00029041,2]
[322198768,1712869959995,-500.0,0.00029041,2]
[322198769,1712869960005,-500.0,0.00029041,2]
[322198770,1712869960015,-722.6,0.00029041,2]
[322198771,1712869960025,-3339.86,0.00029041,2]
[322198772,1712869960035,-538.95,0.00029041,2]
[322198773,1712869960044,-1774.88,0.00029041,2]
[322198774,1712869960054,-500.0,0.00029041,2]
[322198775,1712869960064,-896.99,0.00029041,2]
[322198776,1712869960074,-331.380326,0.00029041,14]
[322198777,1712869960084,-10000.0,0.00029066,2]
[322198778,1712869960094,-2438.0,0.00029095,2]
[322198779,1712869960104,-172.298,0.00029095,2]
[322198780,1712869960113,-1633.0,0.00029095,2]
[322198781,1712869960123,-223.0,0.00029095,2]
[322198782,1712869960133,-354.0,0.00029095,2]
[322198783,1712869960142,-442.0,0.00029095,2]
[322198784,1712869960152,-300.0,0.0002911,2]
[322198785,1712869960162,-300.0,0.00029123,2]
[322198786,1712869960172,-300.0,0.00029139,2]
[322198787,1712869960182,-300.0,0.00029143,2]
[322198788,1712869960192,-154.06513536,0.00029143,2]
[322198789,1712869960201,-4798.0,0.00029144,2]
[322198790,1712869960212,-573.534,0.00029144,2]
[322198791,1712869960222,-305.808,0.00029144,2]
[322198792,1712869960232,-5711.0,0.00029144,2]
[322198793,1712869960242,-2463.0,0.00029144,2]
[322198794,1712869960252,-1053.0,0.00029144,2]
[322198795,1712869960262,-300.0,0.00029145,2]
[322198796,1712869960272,-157.041205,0.00029148,19]
[322198797,1712869960283,-150.0,0.00029182,2]
[322198798,1712869960293,-300.0,0.00029195,2]
[322198799,1712869960303,-300.0,0.00029201,2]
[322198800,1712869960313,-3471.41144835,0.00029205,2]
[322198801,1712869960324,-150.0,0.00029224,2]
[322198802,1712869960334,-300.0,0.0002923,2]
[322198803,1712869960344,-300.0,0.00029235,2]
[322198804,1712869960355,-500.0,0.00029297,2]
[322198805,1712869960365,-150.0,0.000293,2]
[322198806,1712869960376,-22028.18538595,0.00029312,2]
[322198807,1712869960388,-439.35647878,0.00029315,2]
[322198808,1712869960398,-507.89,0.00029315,2]
[322198809,1712869960409,-590.86,0.00029315,2]
[322198810,1712869960419,-215.9357184,0.00029315,2]
[322198811,1712869960428,-500.0,0.00029315,2]
[322198812,1712869960438,-805.44,0.00029315,2]
[322198813,1712869960448,-500.0,0.00029315,2]
[322198814,1712869960458,-500.0,0.00029315,2]
[322198815,1712869960469,-629.54,0.00029315,2]
[322198816,1712869960481,-500.0,0.00029315,2]
[322198817,1712869960491,-500.0,0.00029315,2]
[322198818,1712869960501,-500.0,0.00029315,2]
[322198819,1712869960511,-531.36,0.00029315,2]
[322198820,1712869960521,-765.12,0.00029315,2]
[322198821,1712869960532,-500.0,0.00029315,2]
[322198822,1712869960542,-673.55,0.00029315,2]
[322198823,1712869960553,-500.0,0.00029315,2]
[322198824,1712869960563,-500.0,0.00029315,2]
[322198825,1712869960573,-500.0,0.00029315,2]
[322198826,1712869960583,-500.0,0.00029315,2]
[322198827,1712869960593,-1055.22,0.00029315,2]
[322198828,1712869960603,-838.26,0.00029315,2]
[322198829,1712869960613,-513.12,0.00029315,2]
[322198830,1712869960623,-500.0,0.00029315,2]
[322198831,1712869960633,-561.16,0.00029315,2]
[322198832,1712869960643,-520.88,0.00029315,2]
[322198833,1712869960654,-500.0,0.00029315,2]
[322198834,1712869960665,-532.8,0.00029315,2]
[322198835,1712869960675,-500.0,0.00029315,2]
[322198836,1712869960685,-717.66,0.00029315,2]
[322198837,1712869960696,-500.0,0.00029315,2]
[322198838,1712869960706,-500.0,0.00029315,2]
[322198839,1712869960716,-956.54,0.00029315,2]
[322198840,1712869960726,-500.0,0.00029315,2]
[322198841,1712869960737,-527.16,0.00029315,2]
[322198842,1712869960747,-500.0,0.00029315,2]
[322198843,1712869960758,-534.08,0.00029315,2]
[322198844,1712869960768,-500.0,0.00029315,2]
[322198845,1712869960778,-583.53,0.00029315,2]
[322198846,1712869960788,-500.0,0.00029315,2]
[322198847,1712869960799,-500.0,0.00029315,2]
[322198848,1712869960810,-500.0,0.00029315,2]
[322198849,1712869960820,-500.0,0.00029315,2]
[322198850,1712869960830,-794.27,0.00029315,2]
[322198851,1712869960841,-500.0,0.00029315,2]
[322198852,1712869960851,-775.81,0.00029315,2]
[322198853,1712869960861,-500.0,0.00029315,2]
[322198854,1712869960872,-1268.53,0.00029315,2]
[322198855,1712869960881,-579.81,0.00029315,2]
[322198856,1712869961119,-683.65,0.00029315,2]
[322198857,1712869961129,-500.0,0.00029315,2]
[322198858,1712869961138,-500.0,0.00029315,2]
[322198859,1712869961148,-500.0,0.00029315,2]
[322198860,1712869961158,-500.0,0.00029315,2]
[322198861,1712869961168,-1283.53,0.00029315,2]
[322198862,1712869961178,-500.0,0.00029315,2]
[322198863,1712869961187,-1242.22,0.00029315,2]
[322198864,1712869961197,-610.16,0.00029315,2]
[322198865,1712869961206,-686.6,0.00029315,2]
[322198866,1712869961215,-964.51,0.00029315,2]
[322198867,1712869961225,-552.23,0.00029315,2]
[322198868,1712869961234,-500.0,0.00029315,2]
[322198869,1712869961243,-500.0,0.00029315,2]
[322198870,1712869961252,-500.0,0.00029315,2]
[322198871,1712869961261,-500.0,0.00029315,2]
[322198872,1712869961270,-993.58,0.00029315,2]
[322198873,1712869961279,-500.0,0.00029315,2]
[322198874,1712869961289,-675.23,0.00029315,2]
[322198875,1712869961298,-1308.49,0.00029315,2]
[322198876,1712869961307,-703.03,0.00029315,2]
[322198877,1712869961317,-564.56,0.00029315,2]
[322198878,1712869961326,-560.79,0.00029315,2]
[322198879,1712869961336,-500.0,0.00029315,2]
[322198880,1712869961345,-561.9,0.00029315,2]
[322198881,1712869961355,-1067.51,0.00029315,2]
[322198882,1712869961364,-598.24,0.00029315,2]
[322198883,1712869961373,-691.29,0.00029315,2]
[322198884,1712869961383,-500.0,0.00029315,2]
[322198885,1712869961395,-500.0,0.00029315,2]
[322198886,1712869961406,-704.14,0.00029315,2]
[322198887,1712869961415,-645.96,0.00029315,2]
[322198888,1712869961424,-500.0,0.00029315,2]
[322198889,1712869961434,-1172.44,0.00029315,2]
[322198890,1712869961443,-500.0,0.00029315,2]
[322198891,1712869961453,-1403.78,0.00029315,2]
[322198892,1712869961464,-820.3,0.00029315,2]
[322198893,1712869961475,-170.59774169,0.00029315,2]
[322198894,1712869961484,-1352.31,0.00029315,2]
[322198895,1712869961494,-868.58,0.00029315,2]
[322198896,1712869961503,-1263.1,0.00029315,2]
[322198897,1712869961513,-470.12851533,0.00029315,2]
[322198898,1712869961523,-1192.54,0.00029315,2]
[322198899,1712869961532,-1391.45,0.00029315,2]
[322198900,1712869961541,-811.44,0.00029315,2]
[322198901,1712869961551,-609.69,0.00029315,2]
[322198902,1712869961560,-676.3,0.00029315,2]
[322198903,1712869961570,-540.39,0.00029315,2]
[322198904,1712869961579,-1771.03,0.00029315,2]
[322198905,1712869961588,-500.0,0.00029315,2]
[322198906,1712869961597,-541.31,0.00029315,2]
[322198907,1712869961607,-1468.06,0.00029315,2]
[322198908,1712869961616,-500.0,0.00029315,2]
[322198909,1712869961626,-862.27,0.00029315,2]
[322198910,1712869961635,-1183.63,0.00029315,2]
[322198911,1712869961645,-500.0,0.00029315,2]
[322198912,1712869961654,-500.0,0.00029315,2]
[322198913,1712869961666,-839.54,0.00029315,2]
[322198914,1712869961675,-500.0,0.00029315,2]
[322198915,1712869961685,-1787.12,0.00029315,2]
[322198916,1712869961695,-500.0,0.00029315,2]
[322198917,1712869961704,-500.0,0.00029315,2]
[322198918,1712869961713,-500.0,0.00029315,2]
[322198919,1712869961723,-1253.73,0.00029315,2]
[322198920,1712869961732,-735.73,0.00029315,2]
[322198921,1712869961741,-500.0,0.00029315,2]
[322198922,1712869961751,-500.0,0.00029315,2]
[322198923,1712869961759,-1318.44,0.00029315,2]
[322198924,1712869961769,-1495.11,0.00029315,2]
[322198925,1712869961778,-700.59,0.00029315,2]
[322198926,1712869961788,-758.95,0.00029315,2]
[322198927,1712869961797,-521.21,0.00029315,2]
[322198928,1712869961806,-500.0,0.00029315,2]
[322198929,1712869961815,-1654.67,0.00029315,2]
[322198930,1712869961824,-500.0,0.00029315,2]
[322198931,1712869961833,-638.47,0.00029315,2]
[322198932,1712869961843,-1164.2,0.00029315,2]
[322198933,1712869961852,-500.0,0.00029315,2]
[322198934,1712869961862,-949.05,0.00029315,2]
[322198935,1712869961872,-500.0,0.00029315,2]
[322198936,1712869961882,-1096.04,0.00029315,2]
[322198937,1712869961891,-777.64,0.00029315,2]
[322198938,1712869961900,-646.84,0.00029315,2]
[322198939,1712869961911,-958.72,0.00029315,2]
[322198940,1712869961920,-500.0,0.00029315,2]
[322198941,1712869961929,-683.7,0.00029315,2]
[322198942,1712869961938,-500.0,0.00029315,2]
[322198943,1712869961947,-897.54,0.00029315,2]
[322198944,1712869961956,-500.0,0.00029315,2]
[322198945,1712869961965,-684.68,0.00029315,2]
[322198946,1712869961975,-500.0,0.00029315,2]
[322198947,1712869961984,-467.06248039,0.00029315,2]
[322198948,1712869961993,-543.38,0.00029315,2]
[322198949,1712869962002,-809.17,0.00029315,2]
[322198950,1712869962011,-305.27,0.00029315,2]
[322198951,1712869962020,-698.14,0.00029315,2]
[322198952,1712869962029,-1067.08,0.00029315,2]
[322198953,1712869962039,-500.0,0.00029315,2]
[322198954,1712869962048,-1021.38,0.00029315,2]
[322198955,1712869962057,-784.4,0.00029315,2]
[322198956,1712869962066,-1207.29,0.00029315,2]
[322198957,1712869962075,-853.95,0.00029315,2]
[322198958,1712869962084,-1154.75,0.00029315,2]
[322198959,1712869962093,-1500.39,0.00029315,2]
[322198960,1712869962103,-500.0,0.00029315,2]
[322198961,1712869962112,-1102.48,0.00029315,2]
[322198962,1712869962121,-1684.95,0.00029315,2]
[322198963,1712869962130,-864.47,0.00029315,2]
[322198964,1712869962139,-1050.08,0.00029315,2]
[322198965,1712869962148,-1060.45,0.00029315,2]
[322198966,1712869962159,-727.49,0.00029315,2]
[322198967,1712869962168,-534.42,0.00029315,2]
[322198968,1712869962178,-500.0,0.00029315,2]
[322198969,1712869962186,-578.9,0.00029315,2]
[322198970,1712869962196,-598.73,0.00029315,2]
[322198971,1712869962205,-500.0,0.00029315,2]
[322198972,1712869962213,-1013.17,0.00029315,2]
[322198973,1712869962222,-500.0,0.00029315,2]
[322198974,1712869962232,-552.15,0.00029315,2]
[322198975,1712869962241,-722.75,0.00029315,2]
[322198976,1712869962250,-1454.96,0.00029315,2]
[322198977,1712869962259,-585.74,0.00029315,2]
[322198978,1712869962268,-600.91,0.00029315,2]
[322198979,1712869962278,-627.17,0.00029315,2]
[322198980,1712869962287,-500.0,0.00029315,2]
[322198981,1712869962296,-1870.66,0.00029315,2]
[322198982,1712869962305,-921.94,0.00029315,2]
[322198983,1712869962314,-1288.35,0.00029315,2]
[322198984,1712869962323,-500.0,0.00029315,2]
[322198985,1712869962332,-670.72,0.00029315,2]
[322198986,1712869962341,-474.8,0.00029315,2]
[322198987,1712869962351,-1052.23,0.00029315,2]
[322198988,1712869962360,-1720.31,0.00029315,2]
[322198989,1712869962369,-500.0,0.00029315,2]
[322198990,1712869962379,-241.5466765,0.00029315,2]
[322198991,1712869962395,-2622.22,0.00029315,2]
[322198992,1712869962403,-1850.14,0.00029315,2]
[322198993,1712869962414,-500.0,0.00029315,2]
[322198994,1712869962423,-500.0,0.00029315,2]
[322198995,1712869962434,-500.0,0.00029315,2]
[322198996,1712869962443,-306.03252389,0.00029315,2]
[322198997,1712869962452,-500.0,0.00029315,2]
[322198998,1712869962462,-869.29,0.00029315,2]
[322198999,1712869962472,-500.0,0.00029315,2]
[322199000,1712869962482,-722.11,0.00029315,2]
[322199001,1712869962491,-933.06,0.00029315,2]
[322199002,1712869962501,-500.0,0.00029315,2]
[322199003,1712869962510,-1172.68,0.00029315,2]
[322199004,1712869962521,-500.0,0.00029315,2]
[322199005,1712869962532,-500.0,0.00029315,2]
[322199006,1712869962542,-500.0,0.00029315,2]
[322199007,1712869962551,-1203.46,0.00029315,2]
[322199008,1712869962561,-993.8,0.00029315,2]
[322199009,1712869962570,-500.0,0.00029315,2]
[322199010,1712869962579,-500.0,0.00029315,2]
[322199011,1712869962589,-150.0,0.00029315,2]
[322199012,1712869962598,-1318.86,0.00029315,2]
[322199013,1712869962607,-879.12,0.00029315,2]
[322199014,1712869962616,-1664.67,0.00029315,2]
[322199015,1712869962625,-500.0,0.00029315,2]
[322199016,1712869962634,-553.15,0.00029315,2]
[322199017,1712869962644,-916.81,0.00029315,2]
[322199018,1712869962653,-923.4,0.00029315,2]
[322199019,1712869962663,-1597.09,0.00029315,2]
[322199020,1712869962672,-500.0,0.00029315,2]
[322199021,1712869962681,-500.0,0.00029315,2]
[322199022,1712869962691,-500.0,0.00029315,2]
[322199023,1712869962700,-500.0,0.00029315,2]
[322199024,1712869962709,-500.0,0.00029315,2]
[322199025,1712869962718,-1225.4,0.00029315,2]
[322199026,1712869962727,-500.0,0.00029315,2]
[322199027,1712869962736,-1736.6,0.00029315,2]
[322199028,1712869962745,-1687.78,0.00029315,2]
[322199029,1712869962754,-533.65,0.00029315,2]
[322199030,1712869962763,-417.0,0.00029315,2]
[322199031,1712869962773,-500.0,0.00029315,2]
[322199032,1712869962782,-892.21,0.00029315,2]
[322199033,1712869962791,-698.09,0.00029315,2]
[322199034,1712869962801,-500.0,0.00029315,2]
[322199035,1712869962810,-500.0,0.00029315,2]
[322199036,1712869962818,-500.0,0.00029315,2]
[322199037,1712869962828,-1618.97,0.00029315,2]
[322199038,1712869962838,-500.0,0.00029315,2]
[322199039,1712869962847,-500.0,0.00029315,2]
[322199040,1712869962857,-998.14,0.00029315,2]
[322199041,1712869962866,-500.0,0.00029315,2]
[322199042,1712869962874,-1890.51,0.00029315,2]
[322199043,1712869962883,-827.22,0.00029315,2]
[322199044,1712869962893,-500.0,0.00029315,2]
[322199045,1712869962902,-500.0,0.00029315,2]
[322199046,1712869962913,-500.0,0.00029315,2]
[322199047,1712869962922,-500.0,0.00029315,2]
[322199048,1712869962932,-1646.03,0.00029315,2]
[322199049,1712869962941,-911.48,0.00029315,2]
[322199050,1712869962950,-767.01,0.00029315,2]
[322199051,1712869962959,-1116.76,0.00029315,2]
[322199052,1712869962968,-500.0,0.00029315,2]
[322199053,1712869962977,-570.82,0.00029315,2]
[322199054,1712869962986,-1022.77,0.00029315,2]
[322199055,1712869962995,-831.5,0.00029315,2]
[322199056,1712869963005,-680.97,0.00029315,2]
[322199057,1712869963014,-500.0,0.00029315,2]
[322199058,1712869963023,-500.0,0.00029315,2]
[322199059,1712869963032,-752.98,0.00029315,2]
[322199060,1712869963041,-500.0,0.00029315,2]
[322199061,1712869963050,-1499.79,0.00029315,2]
[322199062,1712869963059,-814.1,0.00029315,2]
[322199063,1712869963069,-7400.19,0.00029315,2]
[322199064,1712869963079,-1023.14,0.00029315,2]
[322199065,1712869963088,-700.72,0.00029315,2]
[322199066,1712869963097,-500.0,0.00029315,2]
[322199067,1712869963106,-950.09,0.00029315,2]
[322199068,1712869963116,-1871.77,0.00029315,2]
[322199069,1712869963125,-3724.71,0.00029315,2]
[322199070,1712869963134,-5395.14,0.00029315,2]
[322199071,1712869963143,-1464.27,0.00029315,2]
[322199072,1712869963152,-978.66,0.00029315,2]
[322199073,1712869963162,-500.0,0.00029315,2]
[322199074,1712869963170,-693.58,0.00029315,2]
[322199075,1712869963179,-984.51,0.00029315,2]
[322199076,1712869963188,-500.0,0.00029315,2]
[322199077,1712869963197,-500.0,0.00029315,2]
[322199078,1712869963206,-4620.04,0.00029315,2]
[322199079,1712869963215,-1543.03,0.00029315,2]
[322199080,1712869963224,-1300.92,0.00029315,2]
[322199081,1712869963233,-934.17,0.00029315,2]
[322199082,1712869963242,-5425.41,0.00029315,2]
[322199083,1712869963251,-500.0,0.00029315,2]
[322199084,1712869963261,-500.0,0.00029315,2]
[322199085,1712869963270,-1214.31,0.00029315,2]
[322199086,1712869963279,-788.68,0.00029315,2]
[322199087,1712869963288,-613.33,0.00029315,2]
[322199088,1712869963297,-500.0,0.00029315,2]
[322199089,1712869963307,-500.0,0.00029315,2]
[322199090,1712869963316,-827.37,0.00029315,2]
[322199091,1712869963325,-500.0,0.00029315,2]
[322199092,1712869963334,-1593.55,0.00029315,2]
[322199093,1712869963343,-500.0,0.00029315,2]
[322199094,1712869963353,-1948.7,0.00029315,2]
[322199095,1712869963454,-9749.83,0.00029315,2]
[322199096,1712869963465,-500.0,0.00029315,2]
[322199097,1712869963475,-2131.76,0.00029315,2]
[322199098,1712869963484,-500.0,0.00029315,2]
[322199099,1712869963493,-1560.14,0.00029315,2]
[322199100,1712869963502,-1518.32,0.00029315,2]
[322199101,1712869963511,-661.44,0.00029315,2]
[322199102,1712869963521,-1413.3,0.00029315,2]
[322199103,1712869963530,-500.0,0.00029315,2]
[322199104,1712869963540,-5230.96,0.00029315,2]
[322199105,1712869963549,-2479.01,0.00029315,2]
[322199106,1712869963558,-500.0,0.00029315,2]
[322199107,1712869963567,-3647.95,0.00029315,2]
[322199108,1712869963576,-1464.2,0.00029315,2]
[322199109,1712869963585,-1527.36,0.00029315,2]
[322199110,1712869963595,-1358.23,0.00029315,2]
[322199111,1712869963604,-1020.16,0.00029315,2]
[322199112,1712869963613,-11162.19,0.00029315,2]
[322199113,1712869963622,-668.8,0.00029315,2]
[322199114,1712869963632,-41084.78,0.00029315,2]
[322199115,1712869963642,-3874.31,0.00029315,2]
[322199116,1712869963651,-500.0,0.00029315,2]
[322199117,1712869963660,-740.63,0.00029315,2]
[322199118,1712869963669,-500.0,0.00029315,2]
[322199119,1712869963678,-500.0,0.00029315,2]
[322199120,1712869963687,-500.0,0.00029315,2]
[322199121,1712869963696,-548.57,0.00029315,2]
[322199122,1712869963705,-7785.82,0.00029315,2]
[322199123,1712869963714,-1513.09,0.00029315,2]
[322199124,1712869963724,-567.17,0.00029315,2]
[322199125,1712869963733,-3631.93,0.00029315,2]
[322199126,1712869963743,-8421.98,0.00029315,2]
[322199127,1712869963752,-500.0,0.00029315,2]
[322199128,1712869963761,-3207.81,0.00029315,2]
[322199129,1712869963770,-2311.09,0.00029315,2]
[322199130,1712869963780,-12662.48,0.00029315,2]
[322199131,1712869963789,-500.0,0.00029315,2]
[322199132,1712869963798,-921.98,0.00029315,2]
[322199133,1712869963808,-500.0,0.00029315,2]
[322199134,1712869963817,-500.0,0.00029315,2]
[322199135,1712869963826,-1525.4,0.00029315,2]
[322199136,1712869963835,-500.0,0.00029315,2]
[322199137,1712869963844,-1851.69,0.00029315,2]
[322199138,1712869963853,-875.02,0.00029315,2]
[322199139,1712869963863,-7402.21,0.00029315,2]
[322199140,1712869963872,-3131.37,0.00029315,2]
[322199141,1712869963885,-2709.87,0.00029315,2]
[322199142,1712869963895,-254.35875769,0.00029315,2]
[322199143,1712869963904,-500.0,0.00029315,2]
[322199144,1712869963916,-1503.27,0.00029315,2]
[322199145,1712869963925,-2499.54,0.00029315,2]
[322199146,1712869963935,-650.21,0.00029315,2]
[322199147,1712869963944,-5388.34,0.00029315,2]
[322199148,1712869963953,-1676.04,0.00029315,2]
[322199149,1712869963962,-463.66949845,0.00029315,2]
[322199150,1712869963972,-2309.38,0.00029315,2]
[322199151,1712869963981,-643.01,0.00029315,2]
[322199152,1712869963991,-1703.86,0.00029315,2]
[322199153,1712869964001,-928.47,0.00029315,2]
[322199154,1712869964010,-5653.29,0.00029315,2]
[322199155,1712869964019,-790.7,0.00029315,2]